fUSD/lending_fUSD_20240329
["ID","MTS","AMOUNT","RATE_DAILY","PERIOD"]
[320916875,1711707084535,-500.0,0.00049863,120]
[320916876,1711707084545,-500.0,0.00049863,120]
[320916877,1711707084554,-500.0,0.00049863,120]
[320916878,1711707084564,-500.0,0.00049863,120]
[320916879,1711707084573,-500.0,0.00049863,120]
[320916880,1711707084583,-680.59,0.00049863,120]
[320916881,1711707084592,-527.27078399,0.00049863,120]
[320916882,1711707084602,-548.64043224,0.00049863,120]
[320916883,1711707084613,-500.0,0.00049863,120]
[320916884,1711707084624,-500.0,0.00049863,120]
[320916885,1711707084635,-500.0,0.00049863,120]
[320916886,1711707084647,-500.0,0.00049863,120]
[320916887,1711707084656,-744.88,0.00049863,2]
[320916888,1711707084665,-500.0,0.00049863,120]
[320916889,1711707084675,-500.0,0.00049863,120]
[320916890,1711707084685,-500.0,0.00049863,120]
[320916891,1711707084694,-500.0,0.00049863,120]
[320916892,1711707084703,-851.59,0.00049863,120]
[320916893,1711707084712,-500.0,0.00049863,120]
[320916894,1711707084721,-506.9077727,0.00049863,120]
[320916895,1711707084731,-500.0,0.00049863,120]
[320916896,1711707084741,-500.0,0.00049863,120]
[320916897,1711707084751,-500.0,0.00049863,120]
[320916898,1711707084760,-500.0,0.00049863,120]
[320916899,1711707084770,-525.94567512,0.00049863,120]
[320916900,1711707084779,-500.0,0.00049863,120]
[320916901,1711707084790,-745.86,0.00049863,120]
[320916902,1711707084799,-500.0,0.00049863,120]
[320916903,1711707084808,-1025.44742063,0.00049863,30]
[320916904,1711707084818,-500.0,0.00049863,120]
[320916905,1711707084828,-250.08,0.00049863,120]
[320916906,1711707084837,-500.0,0.00049863,120]
[320916907,1711707084846,-500.0,0.00049863,120]
[320916908,1711707084855,-500.0,0.00049863,120]
[320916909,1711707084865,-510.77744059,0.00049863,120]
[320916910,1711707084875,-500.0,0.00049863,2]
[320916911,1711707084898,-500.0,0.00049863,120]
[320916912,1711707084914,-537.41,0.00049863,120]
[320916913,1711707084933,-500.0,0.00049863,120]
[320916914,1711707084952,-500.0,0.00049863,120]
[320916915,1711707084967,-500.0,0.00049863,120]
[320916916,1711707084986,-500.0,0.00049863,120]
[320916917,1711707085003,-500.0,0.00049863,120]
[320916918,1711707085017,-532.98,0.00049863,120]
[320916919,1711707085038,-526.34439563,0.00049863,120]
[320916920,1711707085055,-500.0,0.00049863,120]
[320916921,1711707085071,-500.0,0.00049863,120]
[320916922,1711707085091,-500.0,0.00049863,120]
[320916923,1711707085109,-516.66362361,0.00049863,120]
[320916924,1711707085122,-500.0,0.00049863,120]
[320916925,1711707085139,-1156.54,0.00049863,120]
[320916926,1711707085156,-500.0,0.00049863,120]
[320916927,1711707085170,-500.0,0.00049863,120]
[320916928,1711707085185,-500.0,0.00049863,120]
[320916929,1711707085200,-500.0,0.00049863,120]
[320916930,1711707085215,-500.0,0.00049863,120]
[320916931,1711707085230,-500.0,0.00049863,120]
[320916932,1711707085245,-500.0,0.00049863,120]
[320916933,1711707085260,-500.0,0.00049863,120]
[320916934,1711707085275,-500.0,0.00049863,120]
[320916935,1711707085290,-500.0,0.00049863,120]
[320916936,1711707085305,-500.0,0.00049863,120]
[320916937,1711707085318,-500.0,0.00049863,120]
[320916938,1711707085333,-500.0,0.00049863,120]
[320916939,1711707085347,-500.0,0.00049863,120]
[320916940,1711707085361,-500.0,0.00049863,120]
[320916941,1711707085376,-500.0,0.00049863,120]
[320916942,1711707085390,-500.0,0.00049863,30]
[320916943,1711707085405,-500.0,0.00049863,120]
[320916944,1711707085419,-524.60063013,0.00049863,120]
[320916945,1711707085433,-592.42,0.00049863,120]
[320916946,1711707085448,-500.0,0.00049863,120]
[320916947,1711707085462,-500.0,0.00049863,120]
[320916948,1711707085477,-500.0,0.00049863,120]
[320916949,1711707085490,-500.0,0.00049863,120]
[320916950,1711707085506,-520.30934497,0.00049863,120]
[320916951,1711707085520,-722.38,0.00049863,120]
[320916952,1711707085534,-627.35192165,0.00049863,120]
[320916953,1711707085548,-525.06283308,0.00049863,120]
[320916954,1711707085563,-500.0,0.00049863,120]
[320916955,1711707085577,-500.0,0.00049863,120]
[320916956,1711707085592,-500.0,0.00049863,120]
[320916957,1711707085606,-500.0,0.00049863,120]
[320916958,1711707085621,-500.0,0.00049863,120]
[320916959,1711707085636,-500.0,0.00049863,120]
[320916960,1711707085652,-500.0,0.00049863,120]
[320916961,1711707085667,-500.0,0.00049863,120]
[320916962,1711707085683,-643.55843295,0.00049863,120]
[320916963,1711707085698,-540.35,0.00049863,120]
[320916964,1711707085713,-500.0,0.00049863,120]
[320916965,1711707085727,-500.0,0.00049863,120]
[320916966,1711707085742,-500.0,0.00049863,120]
[320916967,1711707085759,-500.0,0.00049863,120]
[320916968,1711707085773,-500.0,0.00049863,120]
[320916969,1711707085787,-500.0,0.00049863,120]
[320916970,1711707085804,-500.0,0.00049863,120]
[320916971,1711707085819,-500.0,0.00049863,120]
[320916972,1711707085834,-500.0,0.00049863,120]
[320916973,1711707085849,-500.0,0.00049863,120]
[320916974,1711707085864,-500.0,0.00049863,120]
[320916975,1711707085879,-557.18,0.00049863,120]
[320916976,1711707085893,-500.0,0.00049863,120]
[320916977,1711707085908,-500.0,0.00049863,120]
[320916978,1711707085922,-500.0,0.00049863,120]
[320916979,1711707085936,-500.0,0.00049863,120]
[320916980,1711707085950,-500.0,0.00049863,120]
[320916981,1711707085965,-500.0,0.00049863,120]
[320916982,1711707085981,-260.56488109,0.00049863,120]
[320916983,1711707085996,-524.22226264,0.00049863,120]
[320916984,1711707086012,-500.0,0.00049863,120]
[320916985,1711707086027,-500.0,0.00049863,120]
[320916986,1711707086041,-500.0,0.00049863,120]
[320916987,1711707086056,-500.0,0.00049863,120]
[320916988,1711707086070,-500.0,0.00049863,120]
[320916989,1711707086084,-500.0,0.00049863,120]
[320916990,1711707086099,-500.0,0.00049863,120]
[320916991,1711707086113,-500.0,0.00049863,120]
[320916992,1711707086129,-500.0,0.00049863,120]
[320916993,1711707086143,-500.0,0.00049863,120]
[320916994,1711707086158,-218.93839781,0.00049863,120]
[320916995,1711707086172,-286.30778353,0.00049863,120]
[320916996,1711707086187,-580.74,0.00049863,120]
[320916997,1711707086202,-500.0,0.00049863,120]
[320916998,1711707086216,-517.2516778,0.00049863,120]
[320916999,1711707086401,-500.0,0.00049863,120]
[320917000,1711707086419,-500.0,0.00049863,120]
[320917001,1711707086429,-500.0,0.00049863,120]
[320917002,1711707086438,-500.0,0.00049863,120]
[320917003,1711707086447,-1538.82,0.00049863,120]
[320917004,1711707086457,-529.3271429,0.00049863,120]
[320917005,1711707086466,-560.27498569,0.00049863,120]
[320917006,1711707086476,-500.0,0.00049863,120]
[320917007,1711707086486,-500.0,0.00049863,120]
[320917008,1711707086495,-500.0,0.00049863,120]
[320917009,1711707086504,-733.58,0.00049863,120]
[320917010,1711707086513,-500.0,0.00049863,120]
[320917011,1711707086522,-514.29057722,0.00049863,120]
[320917012,1711707086532,-500.0,0.00049863,120]
[320917013,1711707086542,-500.0,0.00049863,120]
[320917014,1711707086551,-1281.65,0.00049863,120]
[320917015,1711707086560,-526.80867941,0.00049863,120]
[320917016,1711707086569,-586.62,0.00049863,120]
[320917017,1711707086578,-500.0,0.00049863,120]
[320917018,1711707086588,-500.0,0.00049863,120]
[320917019,1711707086597,-1120.28,0.00049863,120]
[320917020,1711707086606,-500.0,0.00049863,120]
[320917021,1711707086615,-500.0,0.00049863,120]
[320917022,1711707086627,-500.0,0.00049863,120]
[320917023,1711707086637,-599.93,0.00049863,120]
[320917024,1711707086650,-554.11057934,0.00049863,120]
[320917025,1711707086659,-1317.16,0.00049863,120]
[320917026,1711707086668,-4410.4,0.00049863,120]
[320917027,1711707086678,-1495.55,0.00049863,120]
[320917028,1711707086687,-500.0,0.00049863,120]
[320917029,1711707086700,-21196.2,0.00049863,120]
[320917030,1711707086709,-500.0,0.00049863,120]
[320917031,1711707086718,-580.33726105,0.00049863,120]
[320917032,1711707086728,-500.0,0.00049863,120]
[320917033,1711707086737,-500.0,0.00049863,120]
[320917034,1711707086746,-1227.73,0.00049863,120]
[320917035,1711707086756,-500.0,0.00049863,120]
[320917036,1711707086766,-500.0,0.00049863,7]
[320917037,1711707086775,-500.0,0.00049863,120]
[320917038,1711707086785,-1229.95,0.00049863,120]
[320917039,1711707086794,-500.0,0.00049863,120]
[320917040,1711707086804,-500.0,0.00049863,120]
[320917041,1711707086813,-548.28037281,0.00049863,120]
[320917042,1711707086826,-538.38000173,0.00049863,120]
[320917043,1711707086835,-500.0,0.00049863,120]
[320917044,1711707086844,-1803.39,0.00049863,120]
[320917045,1711707086853,-500.0,0.00049863,120]
[320917046,1711707086862,-1577.81,0.00049863,120]
[320917047,1711707086872,-1060.45,0.00049863,120]
[320917048,1711707086881,-198.07869592,0.00049863,120]
[320917049,1711707086891,-500.0,0.00049863,120]
[320917050,1711707086901,-500.0,0.00049863,120]
[320917051,1711707086911,-500.0,0.00049863,120]
[320917052,1711707086920,-500.0,0.00049863,120]
[320917053,1711707086929,-9587.95,0.00049863,120]
[320917054,1711707086939,-860.13,0.00049863,120]
[320917055,1711707086949,-500.0,0.00049863,120]
[320917056,1711707086958,-500.0,0.00049863,120]
[320917057,1711707086968,-2161.78,0.00049863,120]
[320917058,1711707086977,-966.69,0.00049863,120]
[320917059,1711707086987,-534.58632588,0.00049863,120]
[320917060,1711707086996,-530.07768383,0.00049863,120]
[320917061,1711707087006,-513.96958414,0.00049863,120]
[320917062,1711707087015,-500.0,0.00049863,120]
[320917063,1711707087025,-1285.99,0.00049863,120]
[320917064,1711707087035,-500.0,0.00049863,120]
[320917065,1711707087045,-500.0,0.00049863,120]
[320917066,1711707087054,-4270.37,0.00049863,120]
[320917067,1711707087064,-1701.83,0.00049863,120]
[320917068,1711707087073,-500.0,0.00049863,120]
[320917069,1711707087083,-542.49,0.00049863,120]
[320917070,1711707087092,-500.0,0.00049863,120]
[320917071,1711707087102,-2656.93,0.00049863,120]
[320917072,1711707087111,-1021.55,0.00049863,120]
[320917073,1711707087121,-500.0,0.00049863,120]
[320917074,1711707087130,-944.56,0.00049863,120]
[320917075,1711707087140,-500.0,0.00049863,120]
[320917076,1711707087150,-1033.6,0.00049863,120]
[320917077,1711707087160,-2596.43,0.00049863,120]
[320917078,1711707087169,-815.59,0.00049863,120]
[320917079,1711707087180,-500.0,0.00049863,120]
[320917080,1711707087189,-500.0,0.00049863,120]
[320917081,1711707087199,-500.0,0.00049863,120]
[320917082,1711707087208,-868.76,0.00049863,120]
[320917083,1711707087218,-649.47,0.00049863,120]
[320917084,1711707087228,-1186.75,0.00049863,120]
[320917085,1711707087237,-1617.32,0.00049863,120]
[320917086,1711707087247,-696.46,0.00049863,120]
[320917087,1711707087257,-582.24,0.00049863,120]
[320917088,1711707087266,-926.41,0.00049863,120]
[320917089,1711707087277,-518.66271149,0.00049863,120]
[320917090,1711707087286,-500.0,0.00049863,120]
[320917091,1711707087295,-500.0,0.00049863,120]
[320917092,1711707087305,-500.0,0.00049863,120]
[320917093,1711707087315,-695.54,0.00049863,120]
[320917094,1711707087325,-1345.46,0.00049863,120]
[320917095,1711707087334,-3650.97,0.00049863,120]
[320917096,1711707087344,-1899.41,0.00049863,120]
[320917097,1711707087353,-614.07,0.00049863,120]
[320917098,1711707087362,-500.0,0.00049863,120]
[320917099,1711707087373,-500.0,0.00049863,120]
[320917100,1711707087382,-561.30692587,0.00049863,120]
[320917101,1711707087391,-1552.25,0.00049863,120]
[320917102,1711707087401,-708.04,0.00049863,120]
[320917103,1711707087411,-1123.35,0.00049863,120]
[320917104,1711707087421,-1154.17,0.00049863,120]
[320917105,1711707087431,-503.16453157,0.00049863,120]
[320917106,1711707087440,-500.0,0.00049863,120]
[320917107,1711707087450,-500.0,0.00049863,120]
[320917108,1711707087460,-765.28,0.00049863,120]
[320917109,1711707087469,-500.0,0.00049863,120]
[320917110,1711707087479,-500.0,0.00049863,120]
[320917111,1711707087488,-3507.52,0.00049863,120]
[320917112,1711707087497,-1463.06,0.00049863,120]
[320917113,1711707087508,-7619.28,0.00049863,120]
[320917114,1711707087517,-500.0,0.00049863,120]
[320917115,1711707087526,-500.0,0.00049863,120]
[320917116,1711707087536,-500.0,0.00049863,120]
[320917117,1711707087545,-1367.82,0.00049863,120]
[320917118,1711707087555,-613.99,0.00049863,120]
[320917119,1711707087565,-1455.5,0.00049863,120]
[320917120,1711707087575,-547.6,0.00049863,120]
[320917121,1711707087585,-1145.85,0.00049863,120]
[320917122,1711707087594,-3472.6,0.00049863,120]
[320917123,1711707087603,-1014.79,0.00049863,120]
[320917124,1711707087612,-526.63620487,0.00049863,120]
[320917125,1711707087623,-500.0,0.00049863,120]
[320917126,1711707087634,-500.0,0.00049863,120]
[320917127,1711707087648,-432.02371411,0.00049863,120]
[320917128,1711707087658,-183.38559312,0.00049863,120]
[320917129,1711707087668,-1073.63,0.00049863,120]
[320917130,1711707087679,-1834.53,0.00049863,120]
[320917131,1711707087689,-534.98357319,0.00049863,120]
[320917132,1711707087698,-2108.68,0.00049863,120]
[320917133,1711707087708,-500.0,0.00049863,120]
[320917134,1711707087719,-12623.99,0.00049863,120]
[320917135,1711707087728,-1236.06,0.00049863,120]
[320917136,1711707087738,-1337.66,0.00049863,120]
[320917137,1711707087747,-500.0,0.00049863,120]
[320917138,1711707087756,-500.0,0.00049863,120]
[320917139,1711707087766,-500.0,0.00049863,120]
[320917140,1711707087775,-500.0,0.00049863,120]
[320917141,1711707087785,-500.0,0.00049863,120]
[320917142,1711707087794,-513.36,0.00049863,120]
[320917143,1711707087804,-710.94,0.00049863,120]
[320917144,1711707087814,-1108.55,0.00049863,120]
[320917145,1711707087823,-532.71005664,0.00049863,120]
[320917146,1711707087833,-500.0,0.00049863,120]
[320917147,1711707087843,-500.0,0.00049863,120]
[320917148,1711707087852,-500.0,0.00049863,120]
[320917149,1711707087861,-1513.08,0.00049863,120]
[320917150,1711707087871,-1029.0,0.00049863,120]
[320917151,1711707087880,-532.34,0.00049863,120]
[320917152,1711707087890,-500.0,0.00049863,120]
[320917153,1711707087899,-2637.0,0.00049863,120]
[320917154,1711707087908,-500.0,0.00049863,120]
[320917155,1711707087919,-500.0,0.00049863,120]
[320917156,1711707087928,-500.0,0.00049863,120]
[320917157,1711707087938,-500.0,0.00049863,120]
[320917158,1711707087947,-929.24,0.00049863,120]
[320917159,1711707087957,-500.0,0.00049863,120]
[320917160,1711707087967,-532.53,0.00049863,120]
[320917161,1711707087977,-232.77352028,0.00049863,120]
[320917162,1711707087987,-500.0,0.00049863,120]
[320917163,1711707087997,-1577.93,0.00049863,120]
[320917164,1711707088006,-500.0,0.00049863,60]
[320917165,1711707088015,-607.96,0.00049863,120]
[320917166,1711707088024,-500.0,0.00049863,120]
[320917167,1711707088034,-500.0,0.00049863,120]
[320917168,1711707088044,-3505.19,0.00049863,120]
[320917169,1711707088053,-2029.61,0.00049863,120]
[320917170,1711707088063,-500.0,0.00049863,120]
[320917171,1711707088072,-547.31789738,0.00049863,120]
[320917172,1711707088082,-1662.32,0.00049863,120]
[320917173,1711707088091,-3958.3,0.00049863,120]
[320917174,1711707088100,-522.59,0.00049863,120]
[320917175,1711707088110,-1563.52,0.00049863,21]
[320917176,1711707088120,-547.45,0.00049863,120]
[320917177,1711707088129,-1594.99,0.00049863,120]
[320917178,1711707088139,-725.61,0.00049863,120]
[320917179,1711707088148,-500.0,0.00049863,120]
[320917180,1711707088158,-500.0,0.00049863,120]
[320917181,1711707088167,-1007.23,0.00049863,120]
[320917182,1711707088177,-1325.4,0.00049863,120]
[320917183,1711707088186,-500.0,0.00049863,120]
[320917184,1711707088196,-616.67969907,0.00049863,120]
[320917185,1711707088205,-500.0,0.00049863,120]
[320917186,1711707088215,-500.0,0.00049863,120]
[320917187,1711707088224,-1456.84,0.00049863,120]
[320917188,1711707088234,-2343.18,0.00049863,120]
[320917189,1711707088244,-2382.95,0.00049863,120]
[320917190,1711707088254,-1458.33,0.00049863,120]
[320917191,1711707088264,-623.04,0.00049863,120]
[320917192,1711707088273,-500.0,0.00049863,120]
[320917193,1711707088283,-514.15,0.00049863,120]
[320917194,1711707088292,-500.0,0.00049863,120]
[320917195,1711707088301,-788.21,0.00049863,120]
[320917196,1711707088311,-917.23,0.00049863,120]
[320917197,1711707088320,-500.0,0.00049863,120]
[320917198,1711707088329,-500.0,0.00049863,120]
[320917199,1711707088338,-534.56471008,0.00049863,120]
[320917200,1711707088347,-500.0,0.00049863,120]
[320917201,1711707088357,-500.0,0.00049863,120]
[320917202,1711707088367,-1139.31,0.00049863,120]
[320917203,1711707088377,-500.0,0.00049863,120]
[320917204,1711707088386,-187.04561068,0.00049863,120]
[320917205,1711707088396,-500.0,0.00049863,120]
[320917206,1711707088405,-1695.65,0.00049863,120]
[320917207,1711707088415,-573.84,0.00049863,120]
[320917208,1711707088424,-778.81,0.00049863,120]
[320917209,1711707088433,-500.0,0.00049863,120]
[320917210,1711707088443,-524.72636127,0.00049863,120]
[320917211,1711707088453,-659.15,0.00049863,120]
[320917212,1711707088463,-500.0,0.00049863,120]
[320917213,1711707088472,-704.23,0.00049863,120]
[320917214,1711707088482,-1202.77,0.00049863,120]
[320917215,1711707088492,-1099.58,0.00049863,120]
[320917216,1711707088501,-500.0,0.00049863,120]
[320917217,1711707088510,-500.0,0.00049863,120]
[320917218,1711707088520,-500.0,0.00049863,120]
[320917219,1711707088529,-1879.97,0.00049863,120]
[320917220,1711707088539,-500.0,0.00049863,120]
[320917221,1711707088549,-500.0,0.00049863,120]
[320917222,1711707088559,-1766.69,0.00049863,120]
[320917223,1711707088694,-1122.61,0.00049863,120]
[320917224,1711707088704,-500.0,0.00049863,120]
[320917225,1711707088714,-1044.66,0.00049863,120]
[320917226,1711707088725,-500.0,0.00049863,120]
[320917227,1711707088735,-500.0,0.00049863,120]
[320917228,1711707088745,-588.87,0.00049863,120]
[320917229,1711707088755,-500.0,0.00049863,120]
[320917230,1711707088765,-388.05956533,0.00049863,120]
[320917231,1711707088774,-500.0,0.00049863,120]
[320917232,1711707088783,-2921.63,0.00049863,120]
[320917233,1711707088793,-500.0,0.00049863,120]
[320917234,1711707088803,-500.0,0.00049863,120]
[320917235,1711707088813,-500.0,0.00049863,120]
[320917236,1711707088824,-530.14707634,0.00049863,120]
[320917237,1711707088835,-3211.11,0.00049863,120]
[320917238,1711707088845,-500.0,0.00049863,120]
[320917239,1711707088855,-500.0,0.00049863,120]
[320917240,1711707088865,-883.55,0.00049863,120]
[320917241,1711707088874,-500.0,0.00049863,120]
[320917242,1711707088883,-508.71579824,0.00049863,120]
[320917243,1711707088892,-943.89,0.00049863,120]
[320917244,1711707088901,-886.75,0.00049863,120]
[320917245,1711707088911,-500.0,0.00049863,120]
[320917246,1711707088920,-1562.36,0.00049863,120]
[320917247,1711707088930,-500.0,0.00049863,120]
[320917248,1711707088939,-2103.98,0.00049863,120]
[320917249,1711707088949,-500.0,0.00049863,120]
[320917250,1711707088959,-563.1592978,0.00049863,120]
[320917251,1711707088968,-500.0,0.00049863,120]
[320917252,1711707088978,-500.0,0.00049863,120]
[320917253,1711707088987,-500.0,0.00049863,120]
[320917254,1711707088997,-500.0,0.00049863,120]
[320917255,1711707089006,-500.0,0.00049863,120]
[320917256,1711707089015,-2161.96,0.00049863,120]
[320917257,1711707089024,-1206.93,0.00049863,120]
[320917258,1711707089033,-3300.79,0.00049863,120]
[320917259,1711707089043,-988.79,0.00049863,120]
[320917260,1711707089052,-548.35,0.00049863,120]
[320917261,1711707089062,-1411.11,0.00049863,120]
[320917262,1711707089071,-500.0,0.00049863,120]
[320917263,1711707089081,-500.0,0.00049863,120]
[320917264,1711707089091,-500.0,0.00049863,120]
[320917265,1711707089100,-500.0,0.00049863,120]
[320917266,1711707089110,-500.0,0.00049863,120]
[320917267,1711707089120,-517.85712892,0.00049863,120]
[320917268,1711707089130,-500.0,0.00049863,120]
[320917269,1711707089139,-400.3517179,0.00049863,120]
[320917270,1711707089149,-3737.1,0.00049863,120]
[320917271,1711707089159,-500.0,0.00049863,120]
[320917272,1711707089169,-326.53154234,0.00049863,120]
[320917273,1711707089179,-500.0,0.00049863,14]
[320917274,1711707089189,-3173.11438446,0.00049869,2]
[320917275,1711707089199,-158.51,0.00049869,120]
[320917276,1711707089209,-13587.34349256,0.0004987,120]
[320917277,1711707089219,-159.0,0.0004988,15]
[320917278,1711707089228,-250.0,0.0004988,15]
[320917279,1711707089238,-225.50660083,0.00049881,30]
[320917280,1711707089247,-159.0,0.0004989,15]
[320917281,1711707089257,-250.0,0.0004989,15]
[320917282,1711707089266,-5164.7955359,0.00049899,2]
[320917283,1711707089275,-230.71,0.000499,7]
[320917284,1711707089285,-212.11,0.000499,7]
[320917285,1711707089294,-150.0,0.000499,30]
[320917286,1711707089303,-400.0,0.000499,18]
[320917287,1711707089313,-150.0,0.000499,30]
[320917288,1711707089322,-300.0,0.000499,18]
[320917289,1711707089332,-225.50660083,0.00049919,30]
[320917290,1711707089341,-150.0,0.00049942,30]
[320917291,1711707089350,-225.50660083,0.00049958,30]
[320917292,1711707089359,-150.0,0.00049966,30]
[320917293,1711707089370,-98286.18770261,0.0004998,2]
[320917294,1711707089379,-3808.83971755,0.00049991,2]
[320917295,1711707089389,-225.50660083,0.00049996,30]
[320917296,1711707089398,-150.0,0.00049997,60]
[320917297,1711707089407,-152.11743383,0.00049997,60]
[320917298,1711707089416,-211.48102942,0.00049999,120]
[320917299,1711707089426,-100000.0,0.0005,40]
[320917300,1711707089435,-160.33643555,0.0005,30]
[320917301,1711707089445,-18497.61687403,0.0005,4]
[320917302,1711707089454,-841.18306537,0.0005,2]
[320917303,1711707089464,-450.0,0.0005,120]
[320917304,1711707089474,-3758.22949272,0.0005,30]
[320917305,1711707089483,-9478.0,0.0005,120]
[320917306,1711707089493,-33292.78615984,0.0005,10]
[320917307,1711707089502,-1050.07960252,0.0005,30]
[320917308,1711707089511,-952.44663204,0.0005,2]
[320917309,1711707089520,-167.35157281,0.0005,14]
[320917310,1711707089530,-6249.3954458,0.0005,120]
[320917311,1711707089539,-1789.0,0.0005,30]
[320917312,1711707089549,-151.95,0.0005,2]
[320917313,1711707089558,-1000.0,0.0005,120]
[320917314,1711707089567,-250.0,0.0005,120]
[320917315,1711707089577,-2220.20809772,0.0005,7]
[320917316,1711707089586,-379.72537091,0.0005,30]
[320917317,1711707089595,-151.0,0.0005,120]
[320917318,1711707089604,-2554.0,0.0005,120]
[320917319,1711707089613,-996.0,0.0005,120]
[320917320,1711707089624,-2000.0,0.0005,120]
[320917321,1711707089633,-500.0,0.0005,120]
[320917322,1711707089646,-1500.0,0.0005,120]
[320917323,1711707089656,-20767.74671838,0.0005,120]
[320917324,1711707089665,-411086.50813831,0.0005,120]
[320917325,1711707089674,-4230.62641021,0.0005,120]
[320917326,1711707089686,-1064.0,0.0005,30]
[320917327,1711707089694,-2734.83,0.0005,30]
[320917328,1711707089704,-533.0,0.0005,120]
[320917329,1711707089713,-552.0,0.0005,120]
[320917330,1711707089728,-500.0,0.0005,120]
[320917331,1711707089737,-500.0,0.0005,120]
[320917332,1711707089747,-500.0,0.0005,120]
[320917333,1711707089756,-500.0,0.0005,120]
[320917334,1711707089765,-500.0,0.0005,120]
[320917335,1711707089775,-500.0,0.0005,120]
[320917336,1711707089784,-14639.06,0.0005,55]
[320917337,1711707089793,-655709.05,0.0005,15]
[320917338,1711707089802,-38750.21900329,0.0005,120]
[320917339,1711707089813,-151.31,0.0005,10]
[320917340,1711707089822,-1400.0,0.0005,30]
[320917341,1711707089832,-150.0,0.0005,27]
[320917342,1711707089841,-51011.0,0.0005,120]
[320917343,1711707089850,-2000.0,0.0005,120]
[320917344,1711707089859,-3686.0286637,0.0005,2]
[320917345,1711707089869,-19382.94592913,0.0005,2]
[320917346,1711707089879,-2916.0,0.0005,15]
[320917347,1711707089888,-200.0,0.0005,27]
[320917348,1711707089897,-150.0,0.0005,10]
[320917349,1711707089907,-500.0,0.00050012,14]
[320917350,1711707089916,-150.0,0.00050027,30]
[320917351,1711707089926,-150.0,0.00050031,30]
[320917352,1711707089935,-225.50660083,0.00050034,30]
[320917353,1711707089945,-471.83421854,0.00050036,2]
[320917354,1711707089955,-211.0,0.0005006,30]
[320917355,1711707089964,-215.0,0.0005006,30]
[320917356,1711707089973,-202.0,0.0005006,30]
[320917357,1711707089982,-225.50660083,0.00050073,30]
[320917358,1711707089992,-937.89664352,0.00050095,26]
[320917359,1711707090002,-150.0,0.00050097,30]
[320917360,1711707090011,-380902.12914414,0.000501,120]
[320917361,1711707090021,-225.50660083,0.00050111,30]
[320917362,1711707090033,-150.0,0.00050111,30]
[320917363,1711707090043,-500.0,0.00050136,120]
[320917364,1711707090053,-500.0,0.00050136,120]
[320917365,1711707090063,-500.0,0.00050136,120]
[320917366,1711707090073,-500.0,0.00050136,120]
[320917367,1711707090084,-500.0,0.00050136,120]
[320917368,1711707090093,-500.0,0.00050136,120]
[320917369,1711707090103,-500.0,0.00050136,120]
[320917370,1711707090113,-500.0,0.00050136,120]
[320917371,1711707090124,-195.59533532,0.00050136,120]
[320917372,1711707090134,-500.0,0.00050136,120]
[320917373,1711707090144,-500.0,0.00050136,120]
[320917374,1711707090154,-500.0,0.00050136,120]